Workbook

Sheet Sheet2
E8: EVENT 1 | G8: EVENT 2 | I8: EVENT 3 | K8: EVENT 4 | M8: Open | O8: National | Q8: TOTAL
B9: Pos | E9: pts | F9: f/d | G9: pts | H9: f/d | I9: pts | J9: f/d | K9: pts | L9: f/d | M9: pts | N9: f/d | O9: pts | P9: f/d | Q9: pts | R9: f/d
B10: 1 | C10: Craig | D10: MacGillivray | E10: 216 | F10: 7 | G10: 56 | H10: 0 | I10: 110 | J10: 5 | K10: 216 | L10: 10 | M10: 378 | N10: 13 | O10: 231 | P10: 6 | Q10: =SUM(E10+G10+I10+K10+M10+O10) -> 1207 | R10: =SUM(F10+H10+J10+L10+N10+P10) -> 41
B11: 2 | C11: Gary | D11: Thomson | E11: 110 | F11: 7 | G11: 216 | H11: 10 | I11: 56 | J11: 0 | K11: 154 | L11: 3 | M11: 138 | N11: 2 | O11: 323 | P11: 5 | Q11: =SUM(E11+G11+I11+K11+M11+O11) -> 997 | R11: =SUM(F11+H11+J11+L11+N11+P11) -> 27
B12: 3 | C12: Robert | D12: Carlisle | E12: 78 | F12: 2 | G12: 154 | H12: 7 | I12: 78 | J12: 2 | K12: 78 | L12: 2 | M12: 98 | N12: 0 | O12: 453 | P12: 15 | Q12: =SUM(E12+G12+I12+K12+M12+O12) -> 939 | R12: =SUM(F12+H12+J12+L12+N12+P12) -> 28
B13: 4 | C13: Ross | D13: Vallance | E13: 78 | F13: 2 | G13: 78 | H13: 3 | I13: 78 | J13: 4 | K13: 78 | L13: 5 | M13: 270 | N13: 6 | O13: 231 | P13: 6 | Q13: =SUM(E13+G13+I13+K13+M13+O13) -> 813 | R13: =SUM(F13+H13+J13+L13+N13+P13) -> 26
B14: 5 | C14: Paul | D14: McPhillips | E14: 56 | F14: 1 | G14: 56 | H14: -1 | I14: 110 | J14: 6 | K14: 110 | L14: 5 | M14: 193 | N14: 6 | O14: 165 | P14: -1 | Q14: =SUM(E14+G14+I14+K14+M14+O14) -> 690 | R14: =SUM(F14+H14+J14+L14+N14+P14) -> 16
B15: 6 | C15: Michael | D15: Collumb | E15: 110 | F15: 5 | G15: 56 | H15: 2 | I15: 56 | J15: 2 | K15: 56 | L15: 0 | M15: 193 | N15: 6 | O15: 165 | P15: 2 | Q15: =SUM(E15+G15+I15+K15+M15+O15) -> 636 | R15: =SUM(F15+H15+J15+L15+N15+P15) -> 17
B16: 7 | C16: Rhys | D16: Clark | E16: 154 | F16: 8 | G16: 110 | H16: 7 | I16: 20 | J16: -1 | K16: 56 | L16: 0 | M16: 98 | N16: 0 | O16: 165 | P16: 3 | Q16: =SUM(E16+G16+I16+K16+M16+O16) -> 603 | R16: =SUM(F16+H16+J16+L16+N16+P16) -> 17
B17: 8 | C17: Dylan | D17: Craig | E17: 78 | F17: 0 | G17: 78 | H17: 2 | I17: 56 | J17: 1 | K17: 78 | L17: 5 | M17: 138 | N17: 1 | O17: 165 | P17: 5 | Q17: =SUM(E17+G17+I17+K17+M17+O17) -> 593 | R17: =SUM(F17+H17+J17+L17+N17+P17) -> 14
B18: 9 | C18: Eden | D18: Sharav | E18: 56 | F18: 1 | G18: 56 | H18: 2 | I18: 216 | J18: 13 | K18: 110 | L18: 7 | M18: 138 | N18: 1 | O18: 0 | Q18: =SUM(E18+G18+I18+K18+M18+O18) -> 576 | R18: =SUM(F18+H18+J18+L18+N18+P18) -> 24
B19: 10 | C19: David | D19: Paterson | E19: 78 | F19: 0 | G19: 20 | H19: -3 | I19: 78 | J19: 2 | K19: 56 | L19: 2 | M19: 98 | N19: 0 | O19: 118 | P19: 0 | Q19: =SUM(E19+G19+I19+K19+M19+O19) -> 448 | R19: =SUM(F19+H19+J19+L19+N19+P19) -> 1
B20: 11 | C20: Joe | D20: McLaren | E20: 56 | F20: -1 | G20: 110 | H20: 4 | I20: 78 | J20: 0 | K20: 56 | L20: 0 | M20: 98 | N20: 1 | O20: 0 | Q20: =SUM(E20+G20+I20+K20+M20+O20) -> 398 | R20: =SUM(F20+H20+J20+L20+N20+P20) -> 4
B21: 12 | C21: Stephen | D21: McArthur | E21: 27 | G21: 32 | I21: 56 | J21: -2 | K21: 56 | L21: -3 | M21: 98 | N21: 1 | O21: 118 | P21: -2 | Q21: =SUM(E21+G21+I21+K21+M21+O21) -> 387 | R21: =SUM(F21+H21+J21+L21+N21+P21) -> -6
B22: 13 | C22: Lee | D22: Mein | E22: 40 | F22: -2 | G22: 56 | H22: 1 | I22: 56 | J22: 1 | K22: 56 | L22: 2 | M22: 35 | N22: -2 | O22: 118 | P22: -1 | Q22: =SUM(E22+G22+I22+K22+M22+O22) -> 361 | R22: =SUM(F22+H22+J22+L22+N22+P22) -> -1
B23: 14 | C23: Kenny | D23: Mollins | G23: 78 | H23: 1 | I23: 40 | J23: -3 | K23: 40 | L23: -3 | M23: 70 | N23: 2 | O23: 118 | P23: -1 | Q23: =SUM(E23+G23+I23+K23+M23+O23) -> 346 | R23: =SUM(F23+H23+J23+L23+N23+P23) -> -4
B24: 15 | C24: Colin | D24: McAlpine | E24: 27 | G24: 27 | I24: 30 | K24: 78 | L24: 1 | M24: 98 | N24: -2 | O24: 42 | P24: -1 | Q24: =SUM(E24+G24+I24+K24+M24+O24) -> 302 | R24: =SUM(F24+H24+J24+L24+N24+P24) -> -2
B25: 16 | C25: Davy | D25: McLellan | E25: 56 | F25: 1 | G25: 56 | H25: 0 | I25: 154 | J25: 7 | K25: 20 | L25: -2 | M25: 0 | O25: 0 | Q25: =SUM(E25+G25+I25+K25+M25+O25) -> 286 | R25: =SUM(F25+H25+J25+L25+N25+P25) -> 6
B26: 17 | C26: Martin | D26: Cook | E26: 22 | K26: 40 | L26: -3 | M26: 98 | N26: 3 | O26: 118 | P26: -3 | Q26: =SUM(E26+G26+I26+K26+M26+O26) -> 278 | R26: =SUM(F26+H26+J26+L26+N26+P26) -> -3
B27: 18 | C27: Lloyd | D27: Condron | E27: 20 | F27: -3 | G27: 40 | H27: -3 | I27: 15 | M27: 70 | N27: -2 | O27: 118 | P27: 0 | Q27: =SUM(E27+G27+I27+K27+M27+O27) -> 263 | R27: =SUM(F27+H27+J27+L27+N27+P27) -> -8
B28: 19 | C28: Graham | D28: Allan | E28: 29 | G28: 40 | H28: -3 | I28: 56 | J28: -2 | K28: 20 | L28: -1 | M28: 70 | N28: 0 | O28: 42 | P28: -3 | Q28: =SUM(E28+G28+I28+K28+M28+O28) -> 257 | R28: =SUM(F28+H28+J28+L28+N28+P28) -> -9
B29: 20 | C29: Alex | D29: Coutts | G29: 22 | I29: 40 | J29: -3 | K29: 56 | L29: -1 | M29: 50 | N29: -3 | O29: 84 | P29: -2 | Q29: =SUM(E29+G29+I29+K29+M29+O29) -> 252 | R29: =SUM(F29+H29+J29+L29+N29+P29) -> -9
B30: 21 | C30: Mark | D30: Owens | E30: 56 | F30: 2 | G30: 56 | H30: 1 | I30: 56 | J30: 2 | K30: 0 | O30: 84 | P30: -1 | Q30: =SUM(E30+G30+I30+K30+M30+O30) -> 252 | R30: =SUM(F30+H30+J30+L30+N30+P30) -> 4
B31: 22 | C31: Chris | D31: Totten | E31: 20 | F31: -2 | G31: 40 | H31: -3 | I31: 40 | J31: -3 | K31: 40 | L31: -3 | M31: 70 | N31: 1 | O31: 42 | Q31: =SUM(E31+G31+I31+K31+M31+O31) -> 252 | R31: =SUM(F31+H31+J31+L31+N31+P31) -> -10
B32: 23 | C32: John | D32: Slavin | G32: 40 | H32: -1 | I32: 40 | K32: 27 | M32: 138 | N32: 1 | Q32: =SUM(E32+G32+I32+K32+M32+O32) -> 245 | R32: =SUM(F32+H32+J32+L32+N32+P32) -> 0
B33: 24 | C33: Sean | D33: Riach | G33: 40 | H33: -3 | I33: 29 | K33: 40 | L33: -3 | M33: 50 | N33: -2 | O33: 84 | P33: -2 | Q33: =SUM(E33+G33+I33+K33+M33+O33) -> 243 | R33: =SUM(F33+H33+J33+L33+N33+P33) -> -10
B34: 25 | C34: John | D34: Rea | E34: 40 | F34: -2 | G34: 78 | H34: -1 | I34: 56 | J34: 0 | K34: 56 | L34: 2 | M34: 0 | Q34: =SUM(E34+G34+I34+K34+M34+O34) -> 230 | R34: =SUM(F34+H34+J34+L34+N34+P34) -> -1
B35: 26 | C35: Barry | D35: Wraith | I35: 29 | K35: 40 | L35: -2 | M35: 70 | N35: 1 | O35: 84 | P35: -1 | Q35: =SUM(E35+G35+I35+K35+M35+O35) -> 223 | R35: =SUM(F35+H35+J35+L35+N35+P35) -> -2
B36: 27 | C36: Stewart | D36: Burns | E36: 22 | G36: 29 | I36: 32 | K36: 40 | L36: -3 | M36: 50 | N36: -3 | O36: 45 | Q36: =SUM(E36+G36+I36+K36+M36+O36) -> 218 | R36: =SUM(F36+H36+J36+L36+N36+P36) -> -6
B37: 28 | C37: Guilio | D37: Rea | E37: 22 | G37: 34 | I37: 36 | K37: 40 | L37: -2 | M37: 70 | N37: 0 | Q37: =SUM(E37+G37+I37+K37+M37+O37) -> 202 | R37: =SUM(F37+H37+J37+L37+N37+P37) -> -2
B38: 29 | C38: Greg | D38: Murphy | G38: 25 | I38: 25 | K38: 25 | M38: 70 | N38: -1 | O38: 50 | Q38: =SUM(E38+G38+I38+K38+M38+O38) -> 195 | R38: =SUM(F38+H38+J38+L38+N38+P38) -> -1
B39: 30 | C39: Jatinder | D39: Singh | E39: 40 | F39: -3 | I39: 40 | J39: -3 | K39: 27 | O39: 84 | P39: -1 | Q39: =SUM(E39+G39+I39+K39+M39+O39) -> 191 | R39: =SUM(F39+H39+J39+L39+N39+P39) -> -7
B40: 31 | C40: Steven | D40: Geddes | E40: 56 | F40: 0 | G40: 20 | H40: -1 | I40: 20 | K40: 40 | L40: -2 | M40: 50 | N40: -2 | Q40: =SUM(E40+G40+I40+K40+M40+O40) -> 186 | R40: =SUM(F40+H40+J40+L40+N40+P40) -> -5
B41: 32 | C41: Darren | D41: Gilbertson | E41: 40 | F41: -3 | G41: 15 | I41: 29 | K41: 27 | M41: 70 | N41: -1 | Q41: =SUM(E41+G41+I41+K41+M41+O41) -> 181 | R41: =SUM(F41+H41+J41+L41+N41+P41) -> -4
B42: 33 | C42: Richard | D42: Holden | E42: 22 | G42: 30 | I42: 40 | J42: -3 | K42: 29 | M42: 50 | N42: -1 | Q42: =SUM(E42+G42+I42+K42+M42+O42) -> 171 | R42: =SUM(F42+H42+J42+L42+N42+P42) -> -4
B43: 34 | C43: Carlo | D43: Coxon | G43: 56 | H43: -3 | I43: 22 | K43: 22 | M43: 70 | N43: 1 | Q43: =SUM(E43+G43+I43+K43+M43+O43) -> 170 | R43: =SUM(F43+H43+J43+L43+N43+P43) -> -2
B44: 35 | C44: Gordon | D44: Adamson | G44: 40 | H44: -3 | I44: 40 | J44: -3 | M44: 50 | N44: -3 | O44: 34 | Q44: =SUM(E44+G44+I44+K44+M44+O44) -> 164 | R44: =SUM(F44+H44+J44+L44+N44+P44) -> -9
B45: 36 | C45: Ethan | D45: Laing | E45: 40 | F45: -1 | G45: 27 | I45: 29 | K45: 32 | M45: 34 | Q45: =SUM(E45+G45+I45+K45+M45+O45) -> 162 | R45: =SUM(F45+H45+J45+L45+N45+P45) -> -1
B46: 37 | C46: Kenny | D46: White | E46: 40 | F46: -2 | G46: 27 | I46: 40 | J46: -3 | M46: 50 | N46: -1 | Q46: =SUM(E46+G46+I46+K46+M46+O46) -> 157 | R46: =SUM(F46+H46+J46+L46+N46+P46) -> -6
B47: 38 | C47: Ryan | D47: Sarahs | G47: 25 | I47: 22 | M47: 70 | N47: 2 | O47: 34 | Q47: =SUM(E47+G47+I47+K47+M47+O47) -> 151 | R47: =SUM(F47+H47+J47+L47+N47+P47) -> 2
B48: 39 | C48: Calvin | D48: Gourlay | E48: 15 | G48: 22 | I48: 29 | K48: 34 | M48: 50 | N48: -2 | Q48: =SUM(E48+G48+I48+K48+M48+O48) -> 150 | R48: =SUM(F48+H48+J48+L48+N48+P48) -> -2
B49: 40 | C49: Chris | D49: Martin | G49: 15 | K49: 34 | M49: 70 | N49: -2 | O49: 31 | Q49: =SUM(E49+G49+I49+K49+M49+O49) -> 150 | R49: =SUM(F49+H49+J49+L49+N49+P49) -> -2
B50: 41 | C50: John | D50: McPhillips | E50: 22 | G50: 27 | I50: 29 | K50: 40 | L50: -3 | O50: 31 | Q50: =SUM(E50+G50+I50+K50+M50+O50) -> 149 | R50: =SUM(F50+H50+J50+L50+N50+P50) -> -3
B51: 42 | C51: Stuart | D51: Johnston | E51: 20 | F51: -2 | G51: 27 | I51: 40 | J51: -2 | M51: 50 | N51: -1 | Q51: =SUM(E51+G51+I51+K51+M51+O51) -> 137 | R51: =SUM(F51+H51+J51+L51+N51+P51) -> -5
B52: 43 | C52: John | D52: Malcolm | E52: 20 | G52: 22 | I52: 15 | K52: 15 | M52: 28 | O52: 31 | Q52: =SUM(E52+G52+I52+K52+M52+O52) -> 131 | R52: =SUM(F52+H52+J52+L52+N52+P52) -> 0
B53: 44 | C53: Aaron | D53: Graham | E53: 15 | G53: 20 | I53: 20 | K53: 15 | M53: 19 | O53: 34 | Q53: =SUM(E53+G53+I53+K53+M53+O53) -> 123 | R53: =SUM(F53+H53+J53+L53+N53+P53) -> 0
B54: 45 | C54: Joe | D54: Hutchison | E54: 29 | G54: 20 | I54: 15 | K54: 15 | M54: 19 | O54: 23 | Q54: =SUM(E54+G54+I54+K54+M54+O54) -> 121 | R54: =SUM(F54+H54+J54+L54+N54+P54) -> 0
B55: 46 | C55: D | D55: Burns | O55: 118 | P55: -3 | Q55: =SUM(E55+G55+I55+K55+M55+O55) -> 118 | R55: =SUM(F55+H55+J55+L55+N55+P55) -> -3
B56: 47 | C56: Paul | D56: Ingram | E56: 15 | G56: 32 | I56: 40 | J56: -3 | O56: 31 | Q56: =SUM(E56+G56+I56+K56+M56+O56) -> 118 | R56: =SUM(F56+H56+J56+L56+N56+P56) -> -3
B57: 48 | C57: Jim | D57: McAllistair | I57: 34 | O57: 84 | P57: -2 | Q57: =SUM(E57+G57+I57+K57+M57+O57) -> 118 | R57: =SUM(F57+H57+J57+L57+N57+P57) -> -2
B58: 49 | C58: Paul | D58: Shanks | O58: 118 | P58: 0 | Q58: =SUM(E58+G58+I58+K58+M58+O58) -> 118 | R58: =SUM(F58+H58+J58+L58+N58+P58) -> 0
B59: 50 | C59: Andy | D59: Rattigan | I59: 22 | K59: 40 | L59: -3 | M59: 50 | N59: -2 | Q59: =SUM(E59+G59+I59+K59+M59+O59) -> 112 | R59: =SUM(F59+H59+J59+L59+N59+P59) -> -5
B60: 51 | C60: Barry | D60: Campbell | E60: 20 | F60: -2 | G60: 40 | H60: -2 | M60: 50 | N60: -2 | Q60: =SUM(E60+G60+I60+K60+M60+O60) -> 110 | R60: =SUM(F60+H60+J60+L60+N60+P60) -> -6
B61: 52 | C61: Keiran | D61: Clark | I61: 22 | K61: 15 | M61: 50 | N61: -3 | O61: 23 | Q61: =SUM(E61+G61+I61+K61+M61+O61) -> 110 | R61: =SUM(F61+H61+J61+L61+N61+P61) -> -3
B62: 53 | C62: Jason | D62: Denham | K62: 29 | M62: 50 | N62: -1 | O62: 31 | Q62: =SUM(E62+G62+I62+K62+M62+O62) -> 110 | R62: =SUM(F62+H62+J62+L62+N62+P62) -> -1
B63: 54 | C63: Sean | D63: Iqbal | K63: 40 | L63: -3 | M63: 70 | N63: -1 | Q63: =SUM(E63+G63+I63+K63+M63+O63) -> 110 | R63: =SUM(F63+H63+J63+L63+N63+P63) -> -4
B64: 55 | C64: Seb | D64: Zaiko | E64: 27 | G64: 15 | I64: 15 | K64: 22 | M64: 25 | Q64: =SUM(E64+G64+I64+K64+M64+O64) -> 104 | R64: =SUM(F64+H64+J64+L64+N64+P64) -> 0
B65: 56 | C65: Pat | D65: Killen | E65: 40 | F65: -2 | G65: 29 | M65: 34 | Q65: =SUM(E65+G65+I65+K65+M65+O65) -> 103 | R65: =SUM(F65+H65+J65+L65+N65+P65) -> -2
B66: 57 | C66: Scott | D66: MacFarlane | E66: 56 | F66: 0 | G66: 20 | H66: -1 | K66: 27 | Q66: =SUM(E66+G66+I66+K66+M66+O66) -> 103 | R66: =SUM(F66+H66+J66+L66+N66+P66) -> -1
B67: 58 | C67: Robert | D67: Miller | K67: 32 | M67: 70 | N67: 2 | Q67: =SUM(E67+G67+I67+K67+M67+O67) -> 102 | R67: =SUM(F67+H67+J67+L67+N67+P67) -> 2
B68: 59 | C68: Gary | D68: McQuillan | E68: 40 | F68: -3 | G68: 40 | H68: -3 | I68: 20 | J68: -1 | Q68: =SUM(E68+G68+I68+K68+M68+O68) -> 100 | R68: =SUM(F68+H68+J68+L68+N68+P68) -> -7
B69: 60 | C69: James | D69: Kelly | M69: 98 | N69: -1 | Q69: =SUM(E69+G69+I69+K69+M69+O69) -> 98 | R69: =SUM(F69+H69+J69+L69+N69+P69) -> -1
B70: 61 | C70: Chic | D70: Gourlay | E70: 20 | G70: 29 | I70: 20 | K70: 22 | Q70: =SUM(E70+G70+I70+K70+M70+O70) -> 91 | R70: =SUM(F70+H70+J70+L70+N70+P70) -> 0
B71: 62 | C71: James | D71: Kelly | E71: 20 | I71: 40 | J71: -3 | K71: 29 | Q71: =SUM(E71+G71+I71+K71+M71+O71) -> 89 | R71: =SUM(F71+H71+J71+L71+N71+P71) -> -3
B72: 63 | C72: Lindsay | D72: Currie | O72: 84 | P72: -3 | Q72: =SUM(E72+G72+I72+K72+M72+O72) -> 84 | R72: =SUM(F72+H72+J72+L72+N72+P72) -> -3
B73: 64 | C73: D | D73: Greig | O73: 84 | P73: -1 | Q73: =SUM(E73+G73+I73+K73+M73+O73) -> 84 | R73: =SUM(F73+H73+J73+L73+N73+P73) -> -1
B74: 65 | C74: Steven | D74: McCuish | O74: 84 | P74: 0 | Q74: =SUM(E74+G74+I74+K74+M74+O74) -> 84 | R74: =SUM(F74+H74+J74+L74+N74+P74) -> 0
B75: 66 | C75: Itrat | D75: Mohammed | O75: 84 | P75: -4 | Q75: =SUM(E75+G75+I75+K75+M75+O75) -> 84 | R75: =SUM(F75+H75+J75+L75+N75+P75) -> -4
B76: 67 | C76: William | D76: Odonnell | O76: 84 | P76: -3 | Q76: =SUM(E76+G76+I76+K76+M76+O76) -> 84 | R76: =SUM(F76+H76+J76+L76+N76+P76) -> -3
B77: 68 | C77: Chris | D77: White | O77: 84 | P77: -3 | Q77: =SUM(E77+G77+I77+K77+M77+O77) -> 84 | R77: =SUM(F77+H77+J77+L77+N77+P77) -> -3
B78: 69 | C78: Martin | D78: Deeney | E78: 40 | F78: -3 | G78: 40 | H78: -3 | Q78: =SUM(E78+G78+I78+K78+M78+O78) -> 80 | R78: =SUM(F78+H78+J78+L78+N78+P78) -> -6
B79: 70 | C79: Scott | D79: Dunbar | G79: 40 | H79: -1 | I79: 40 | J79: -3 | Q79: =SUM(E79+G79+I79+K79+M79+O79) -> 80 | R79: =SUM(F79+H79+J79+L79+N79+P79) -> -4
B80: 71 | C80: William | D80: Meechan | E80: 15 | G80: 22 | I80: 22 | M80: 19 | Q80: =SUM(E80+G80+I80+K80+M80+O80) -> 78 | R80: =SUM(F80+H80+J80+L80+N80+P80) -> 0
B81: 72 | C81: Jim | D81: Daly | G81: 40 | H81: -3 | K81: 36 | Q81: =SUM(E81+G81+I81+K81+M81+O81) -> 76 | R81: =SUM(F81+H81+J81+L81+N81+P81) -> -3
B82: 73 | C82: Lewis | D82: Tait | G82: 22 | K82: 22 | M82: 28 | Q82: =SUM(E82+G82+I82+K82+M82+O82) -> 72 | R82: =SUM(F82+H82+J82+L82+N82+P82) -> 0
B83: 74 | C83: Davie | D83: Hutchison | G83: 40 | H83: -3 | I83: 29 | M83: 0 | Q83: =SUM(E83+G83+I83+K83+M83+O83) -> 69 | R83: =SUM(F83+H83+J83+L83+N83+P83) -> -3
B84: 75 | C84: James | D84: Davis | E84: 15 | G84: 15 | K84: 15 | M84: 19 | Q84: =SUM(E84+G84+I84+K84+M84+O84) -> 64 | R84: =SUM(F84+H84+J84+L84+N84+P84) -> 0
B85: 76 | C85: Steven | D85: Mollins | G85: 15 | I85: 15 | K85: 15 | M85: 19 | Q85: =SUM(E85+G85+I85+K85+M85+O85) -> 64 | R85: =SUM(F85+H85+J85+L85+N85+P85) -> 0
B86: 77 | C86: Spencer | D86: Donnelly | I86: 40 | J86: -2 | K86: 22 | Q86: =SUM(E86+G86+I86+K86+M86+O86) -> 62 | R86: =SUM(F86+H86+J86+L86+N86+P86) -> -2
B87: 78 | C87: Jack | D87: Park | E87: 40 | F87: -1 | G87: 22 | Q87: =SUM(E87+G87+I87+K87+M87+O87) -> 62 | R87: =SUM(F87+H87+J87+L87+N87+P87) -> -1
B88: 79 | C88: Ian | D88: Graham | G88: 32 | K88: 27 | Q88: =SUM(E88+G88+I88+K88+M88+O88) -> 59 | R88: =SUM(F88+H88+J88+L88+N88+P88) -> 0
B89: 80 | C89: Matt | D89: Hodkins | E89: 56 | F89: 0 | G89: 0 | Q89: =SUM(E89+G89+I89+K89+M89+O89) -> 56 | R89: =SUM(F89+H89+J89+L89+N89+P89) -> 0
B90: 83 | C90: Nevin | D90: Adams | O90: 50 | Q90: =SUM(E90+G90+I90+K90+M90+O90) -> 50 | R90: =SUM(F90+H90+J90+L90+N90+P90) -> 0
B91: 81 | C91: Stevie | D91: Dick | M91: 50 | N91: -2 | Q91: =SUM(E91+G91+I91+K91+M91+O91) -> 50 | R91: =SUM(F91+H91+J91+L91+N91+P91) -> -2
B92: 82 | C92: Paul | D92: Murphy | M92: 50 | N92: -3 | Q92: =SUM(E92+G92+I92+K92+M92+O92) -> 50 | R92: =SUM(F92+H92+J92+L92+N92+P92) -> -3
B93: 84 | C93: Derek | D93: Dudgeon | G93: 27 | I93: 22 | Q93: =SUM(E93+G93+I93+K93+M93+O93) -> 49 | R93: =SUM(F93+H93+J93+L93+N93+P93) -> 0
B94: 85 | C94: Jim | D94: Wilson | G94: 22 | K94: 27 | Q94: =SUM(E94+G94+I94+K94+M94+O94) -> 49 | R94: =SUM(F94+H94+J94+L94+N94+P94) -> 0
B95: 86 | C95: John | D95: Bennet | G95: 27 | K95: 20 | Q95: =SUM(E95+G95+I95+K95+M95+O95) -> 47 | R95: =SUM(F95+H95+J95+L95+N95+P95) -> 0
B96: 87 | C96: Blaine | D96: Hendry | K96: 25 | M96: 19 | Q96: =SUM(E96+G96+I96+K96+M96+O96) -> 44 | R96: =SUM(F96+H96+J96+L96+N96+P96) -> 0
B97: 88 | C97: David | D97: Davis | K97: 15 | M97: 28 | Q97: =SUM(E97+G97+I97+K97+M97+O97) -> 43 | R97: =SUM(F97+H97+J97+L97+N97+P97) -> 0
B98: 89 | C98: Lee | D98: Creighton | I98: 40 | J98: -3 | Q98: =SUM(E98+G98+I98+K98+M98+O98) -> 40 | R98: =SUM(F98+H98+J98+L98+N98+P98) -> -3
B99: 90 | C99: Jim | D99: Rushforth | K99: 40 | L99: -3 | Q99: =SUM(E99+G99+I99+K99+M99+O99) -> 40 | R99: =SUM(F99+H99+J99+L99+N99+P99) -> -3
B100: 91 | C100: Craig | D100: Sinclair | E100: 40 | F100: -2 | Q100: =SUM(E100+G100+I100+K100+M100+O100) -> 40 | R100: =SUM(F100+H100+J100+L100+N100+P100) -> -2
B101: 92 | C101: Jim | D101: Stewart | I101: 20 | M101: 19 | Q101: =SUM(E101+G101+I101+K101+M101+O101) -> 39 | R101: =SUM(F101+H101+J101+L101+N101+P101) -> 0
B102: 93 | C102: Douglas | D102: Milne | G102: 20 | I102: 15 | Q102: =SUM(E102+G102+I102+K102+M102+O102) -> 35 | R102: =SUM(F102+H102+J102+L102+N102+P102) -> 0
B103: 94 | C103: Matthew | D103: Daly | K103: 15 | M103: 19 | Q103: =SUM(E103+G103+I103+K103+M103+O103) -> 34 | R103: =SUM(F103+H103+J103+L103+N103+P103) -> 0
B104: 95 | C104: Tom | D104: McFarlane | O104: 34 | Q104: =SUM(E104+G104+I104+K104+M104+O104) -> 34 | R104: =SUM(F104+H104+J104+L104+N104+P104) -> 0
B105: 96 | C105: Steve | D105: McQueen | G105: 15 | I105: 15 | Q105: =SUM(E105+G105+I105+K105+M105+O105) -> 30 | R105: =SUM(F105+H105+J105+L105+N105+P105) -> 0
B106: 97 | C106: Ian | D106: Graham | M106: 28 | Q106: =SUM(E106+G106+I106+K106+M106+O106) -> 28 | R106: =SUM(F106+H106+J106+L106+N106+P106) -> 0
B107: 98 | C107: Willie | D107: Daly | K107: 27 | Q107: =SUM(E107+G107+I107+K107+M107+O107) -> 27 | R107: =SUM(F107+H107+J107+L107+N107+P107) -> 0
B108: 99 | C108: Chris | D108: Green | I108: 27 | Q108: =SUM(E108+G108+I108+K108+M108+O108) -> 27 | R108: =SUM(F108+H108+J108+L108+N108+P108) -> 0
B109: 98 | C109: Billy | D109: Reid | I109: 27 | Q109: =SUM(E109+G109+I109+K109+M109+O109) -> 27 | R109: =SUM(F109+H109+J109+L109+N109+P109) -> 0
B110: 99 | C110: Steven | D110: Dick(Jnr) | M110: 25 | Q110: =SUM(E110+G110+I110+K110+M110+O110) -> 25 | R110: =SUM(F110+H110+J110+L110+N110+P110) -> 0
B111: 100 | C111: Dougie | D111: Melrose | G111: 25 | Q111: =SUM(E111+G111+I111+K111+M111+O111) -> 25 | R111: =SUM(F111+H111+J111+L111+N111+P111) -> 0
B112: 101 | C112: Martin | D112: Miller | M112: 25 | Q112: =SUM(E112+G112+I112+K112+M112+O112) -> 25 | R112: =SUM(F112+H112+J112+L112+N112+P112) -> 0
B113: 102 | C113: Kevin | D113: Polley | I113: 25 | Q113: =SUM(E113+G113+I113+K113+M113+O113) -> 25 | R113: =SUM(F113+H113+J113+L113+N113+P113) -> 0
B114: 103 | C114: Paul | D114: Davis | I114: 22 | Q114: =SUM(E114+G114+I114+K114+M114+O114) -> 22 | R114: =SUM(F114+H114+J114+L114+N114+P114) -> 0
B115: 104 | C115: Bob | D115: McCabe | E115: 22 | Q115: =SUM(E115+G115+I115+K115+M115+O115) -> 22 | R115: =SUM(F115+H115+J115+L115+N115+P115) -> 0
B116: 105 | C116: Andy | D116: McKinnon | I116: 22 | Q116: =SUM(E116+G116+I116+K116+M116+O116) -> 22 | R116: =SUM(F116+H116+J116+L116+N116+P116) -> 0
B117: 106 | C117: Evan | D117: Munro | K117: 22 | Q117: =SUM(E117+G117+I117+K117+M117+O117) -> 22 | R117: =SUM(F117+H117+J117+L117+N117+P117) -> 0
B118: 107 | C118: Callum | D118: Duffy | K118: 20 | Q118: =SUM(E118+G118+I118+K118+M118+O118) -> 20 | R118: =SUM(F118+H118+J118+L118+N118+P118) -> 0
B119: 108 | C119: Ian | D119: Ellis | E119: 20 | Q119: =SUM(E119+G119+I119+K119+M119+O119) -> 20 | R119: =SUM(F119+H119+J119+L119+N119+P119) -> 0
B120: 109 | C120: Chris | D120: Giffney | E120: 20 | F120: -3 | Q120: =SUM(E120+G120+I120+K120+M120+O120) -> 20 | R120: =SUM(F120+H120+J120+L120+N120+P120) -> -3
B121: 110 | C121: D | D121: Graham | M121: 19 | Q121: =SUM(E121+G121+I121+K121+M121+O121) -> 19 | R121: =SUM(F121+H121+J121+L121+N121+P121) -> 0
B122: 111 | C122: Angus | D122: Stewart | M122: 19 | Q122: =SUM(E122+G122+I122+K122+M122+O122) -> 19 | R122: =SUM(F122+H122+J122+L122+N122+P122) -> 0
B123: 112 | C123: Billy | D123: McLaren | G123: 15 | Q123: =SUM(E123+G123+I123+K123+M123+O123) -> 15 | R123: =SUM(F123+H123+J123+L123+N123+P123) -> 0
B124: 115 | Q124: =SUM(E124+G124+I124+K124+M124+O124) -> 0 | R124: =SUM(F124+H124+J124+L124+N124+P124) -> 0
B125: 116 | Q125: =SUM(E125+G125+I125+K125+M125+O125) -> 0 | R125: =SUM(F125+H125+J125+L125+N125+P125) -> 0
B126: 117 | Q126: 0 | R126: 0
B127: 118 | Q127: 0 | R127: 0
B128: 119 | Q128: 0 | R128: 0

Sheet Sheet3
